Cogmind - Beta 16 @@@ ROGUE MODE // 2025.11.07 @ 14:04:36 Player: DoubleCorvid Result: Destroyed by Piercing Trap Performance ------------- Evolutions (0) 0 Regions Visited (2) 400 Robots Destroyed (22) 110 Value Destroyed (699) 699 Prototype IDs (0) 0 Alien Tech Used (0) 0 Bonus (-240) -240 TOTAL SCORE: 969 Bonus ------- Friendly Fire -240 Cogmind --------- Core Integrity 0/250 Matter 161/300 Energy 45/125 System Corruption 0% Temperature Cool (0) Movement Rolling (105) Ox1 Location -10/Subcaves Parts ------- > --- POWER (1) -------- Light Ion Engine > --- PROPULSION (2) --- Armored Wheel Armored Wheel > --- UTILITY (2) ------ High-capacity Storage Unit Shield Generator > --- WEAPON (2) ------- Mini Grenade Launcher Mini Grenade Launcher > --- INVENTORY (20) --- Armored Wheel Armored Wheel Improved Heat Sink Small Battery (100) Large Matter Pod (0) Shield Generator Shield Generator Small Laser Subdweller Beam Cannon Light Assault Rifle Autogun Autogun Autogun Autogun Datajack Mining Laser Peak State ------------ > --- POWER ------------ Ion Engine > --- PROPULSION ------- Light Treads Armored Wheel > --- UTILITY ---------- High-capacity Storage Unit Shield Generator > --- WEAPON ----------- Autogun Mini Grenade Launcher > --- INVENTORY -------- Light Ion Engine Light Ion Engine Light Treads Armored Wheel Armored Wheel Armored Wheel Small Battery Large Matter Pod Shield Generator Shield Generator Shield Generator Small Laser Small Laser Light Assault Rifle Autogun Autogun Autogun Mini Grenade Launcher Datajack Mining Laser [Rating: 14] Favorites ----------- Power Light Ion Engine Engine Light Ion Engine Propulsion Light Treads Treads Light Treads Wheel Armored Wheel Utility High-capacity Storage Unit Device Shield Generator Storage High-capacity Storage Unit Weapon Small Laser Energy Gun Small Laser Ballistic Gun Autogun Launcher Mini Grenade Launcher Build | -11 -10 -10 ------- Run | Yrd Mat Sub Slots Evolved . | . . . Power . | . . . Propulsion . | . . . Utility . | . . . Weapon . | . . . Parts Attached 17 | 6 5 6 Power 3 | 1 . 2 Engine 3 | 1 . 2 Core . | . . . Reactor . | . . . Propulsion 4 | 2 . 2 Treads 2 | 2 . . Leg . | . . . Wheel 2 | . . 2 Hover . | . . . Flight . | . . . Utility 4 | 1 2 1 Device 2 | . 1 1 Storage 2 | 1 1 . Processor . | . . . Hackware . | . . . Protection . | . . . Artifact . | . . . Weapon 6 | 2 3 1 Energy Gun 2 | 2 . . Energy Cannon . | . . . Ballistic Gun 1 | . 1 . Ballistic Cannon . | . . . Launcher 3 | . 2 1 Special Weapon . | . . . Impact Weapon . | . . . Slashing Weapon . | . . . Piercing Weapon . | . . . Special Melee Weapon . | . . . Unidentified Prototypes . | . . . Parts Lost 2 | . . 2 Power 1 | . . 1 Propulsion . | . . . Utility 1 | . . 1 Weapon . | . . . Highest Loss Streak 2 | . . 2 To Critical Strikes . | . . . Average Backups 15 | 4 16 17 Power 1 | . 1 1 Propulsion 4 | 2 5 2 Utility 2 | . 2 4 Weapon 6 | . 7 7 Tool/Special . | . . . Unused Backups 26 | . 12 14 Power 1 | . 1 . Propulsion 6 | . 4 2 Utility 6 | . 1 5 Weapon 12 | . 6 6 Tool/Special 1 | . . 1 Average Slot Usage (%) 91 | . 91 92 Engine 12 | . 14 7 Treads 21 | . 28 3 Wheel 6 | . . 24 Device 7 | . 5 13 Storage 14 | . 14 14 Energy Gun 10 | . 14 . Ballistic Gun 7 | . 7 5 Launcher 10 | . 5 22 Peak Build Rating 14 | 6 13 14 Average Rating 10 | 5 9 13 On Entrance 6 | . 6 13 Avg Prop Armor Cover (%) . | . . . Naked Turns . | . . . Heaviest Build 51 | 10 49 51 Greatest Support 40 | 40 40 40 Greatest Overweight (x) 2 | . 1 2 Average Overweight (x) . | . . 1 Largest Inventory Capacity 20 | 8 20 20 Average Capacity 18 | 6 19 20 Most Carried 20 | 6 20 20 Average Carried 15 | 4 16 17 Final Capacity 20 | 8 20 20 Final Carried 20 | 6 20 16 Class Distribution -------------------- 100% | Mutant Dominant Class ---------------- Mutant | -10/Materials Mutant | -10/Subcaves Resources | -11 -10 -10 ----------- Run | Yrd Mat Sub Matter Collected 602 | 214 147 241 Remotely . | . . . Salvage Created 663 | . 261 402 Parts 40 | . 16 24 Haulers Intercepted 1 | . 1 . Recyclers Shooed 2 | . 2 . Parts Field Recycled . | . . . Retrieved Matter . | . . . Parts Self-Destructed . | . . . Prevented . | . . . Parts Restored . | . . . Kills | -11 -10 -10 ------- Run | Yrd Mat Sub Combat Hostiles Destroyed 17 | . 5 12 Guns 2 | . 2 . AOE 15 | . 3 12 Classes Destroyed 8 | . 5 3 Builder 1 | . 1 . Hauler 1 | . 1 . Recycler 1 | . 1 . Watcher 1 | . 1 . Grunt 5 | . 5 . Subdweller 12 | . . 12 Scientist 1 | . . 1 Guerrilla 1 | . . 1 Best Kill Streak 12 | . 4 12 Combat Bots Only 12 | . 3 12 Max Kills in Single Turn 5 | . 2 5 Gunslinging . | . . . Exploded 5 | . 1 5 Melee . | . . . Uniques/NPCs Destroyed . | . . . Combat | -11 -10 -10 -------- Run | Yrd Mat Sub Hostile Shots Fired 44 | . 16 28 Missed 12 | . 3 9 Hits 32 | . 13 19 Projectile 32 | . 13 19 Damage Taken 784 | . 155 629 Core 254 | . 41 213 Absorbed by Shields 185 | . 30 155 Core Remaining (%) 100 | 100 . . Volleys Fired 41 | . 24 17 Largest 2 | . 2 2 Hottest 80 | . 80 60 Shots Fired 75 | . 43 32 Gun 43 | . 36 7 Cannon . | . . . Launcher 32 | . 7 25 Special . | . . . Kinetic 17 | . 10 7 Thermal 26 | . 26 . Explosive 32 | . 7 25 Electromagnetic . | . . . Robot Hit Streak 7 | . 3 7 Robot Miss Streak 2 | . 2 2 Penetration Max . | . . . Secondary Targets . | . . . Shots Hit Robots 22 | . 10 12 Core Hits 34 | . 11 23 Critical Kills . | . . . Critical Parts Destroyed . | . . . Critical Strikes . | . . . Melee Attacks . | . . . Impact . | . . . Slashing . | . . . Piercing . | . . . Sneak Attacks . | . . . Combat Hostiles . | . . . Follow-up Attacks . | . . . Damage Inflicted 1972 | . 488 1484 Guns 216 | . 158 58 Cannons . | . . . Explosions 1747 | . 321 1426 Melee . | . . . Ramming 9 | . 9 . Kinetic 169 | . 111 58 Thermal 47 | . 47 . Explosive 1747 | . 321 1426 Electromagnetic . | . . . Impact . | . . . Slashing . | . . . Piercing . | . . . Highest Corruption . | . . . Average Corruption . | . . . Corruption Purged . | . . . Corruption Blocked . | . . . Overload Shots . | . . . Overflow Damage 32 | . . 32 Projectiles . | . . . Explosions 32 | . . 32 Melee . | . . . Knockbacks . | . . . Impact . | . . . Kinetic . | . . . Secondary . | . . . Self-Inflicted Damage 286 | . 27 259 Shots 10 | . 1 9 Rammed 2 | . 2 . Targets Rammed 2 | . 2 . Kicked . | . . . Crushed . | . . . Highest Temperature 144 | . 144 . Average Temperature 40 | . 40 . Received Heat Transfer 129 | . 58 71 Siege Activations . | . . . Martial Activations . | . . . Shielding Activations . | . . . Robots Disrupted . | . . . Combat Hostiles . | . . . Robots Corrupted . | . . . Combat Hostiles . | . . . Parts Fried . | . . . Impact Corruptions . | . . . Robots Melted . | . . . Combat Hostiles . | . . . Parts Melted . | . . . Heat Transferred 100 | . 100 . Parts Sabotaged . | . . . Parts Stolen . | . . . Parts Stripped . | . . . Power Chain Reactions . | . . . Alert | -11 -10 -10 ------- Run | Yrd Mat Sub Maximum Alert Level . | . . . Low Security (%) 100 | 100 100 . Level 1 . | . . . Level 2 . | . . . Level 3 . | . . . Level 4 . | . . . Level 5 . | . . . High Security . | . . . Max Security . | . . . Peak Influence 104 | . 104 . Initial . | . . . Average 18 | . 21 . Influence Increases 227 | . 227 . Destroy 0b10 Robot/C 100 | . 100 . Destroy 0b10 Robot/NC 20 | . 20 . Destroy Leader 34 | . 34 . Disable Machine 30 | . 30 . Destroy Structure 43 | . 43 . Influence Decreases 227 | . 188 39 Entered New Map 19 | . . 19 Time Decay 208 | . 188 20 Squads Dispatched 4 | . 4 . Investigation 4 | . 4 . Extermination . | . . . Reinforcement . | . . . Assault . | . . . Garrison . | . . . Intercept . | . . . Searches Triggered . | . . . Construction Impeded . | . . . Haulers Reinforced . | . . . Active Scanning Responses . | . . . Cargo Convoy Interrupts . | . . . Stealth | -11 -10 -10 --------- Run | Yrd Mat Sub Distress Signals 2 | . 2 . Communications Jammed . | . . . Distress Signals . | . . . Times Spotted 26 | . 8 18 Peak Tracking Total 10 | . 3 10 Tactical Retreats . | . . . Traps | -11 -10 -10 ------- Run | Yrd Mat Sub Traps Triggered 3 | . 2 1 Indirectly . | . . . Trap Hack Attempts . | . . . Triggered . | . . . Disarmed . | . . . Reprogrammed . | . . . Reused . | . . . Traps Extracted . | . . . Installed . | . . . Triggered . | . . . Machines | -11 -10 -10 ---------- Run | Yrd Mat Sub Machines Disabled 2 | . 2 . Max in Single Turn 1 | . 1 . Machines Repaired . | . . . Machines Dismantled . | . . . Machines Sabotaged . | . . . Overloaded Fab Kills . | . . . Hacking | -11 -10 -10 --------- Run | Yrd Mat Sub Machines Accessed 3 | . 3 . Terminals 2 | . 2 . Fabricators . | . . . Repair Stations . | . . . Recycling Units 1 | . 1 . Scanalyzers . | . . . Garrison Access . | . . . Total Hacks 8 | . 8 . Successful 3 | . 3 . Failed 5 | . 5 . Catastrophic 2 | . 2 . Database Lockouts . | . . . Manual 3 | . 3 . Terminals 7 | . 7 . Fabricators . | . . . Repair Stations . | . . . Recycling Units 1 | . 1 . Scanalyzers . | . . . Garrison Access . | . . . Terminal Hacks 2 | . 2 . Record 1 | . 1 . Branch Access Points 1 | . 1 . Fabricator Hacks . | . . . Repair Station Hacks . | . . . Recycling Unit Hacks 1 | . 1 . Report Inventory 1 | . 1 . Scanalyzer . | . . . Garrison Access Hacks . | . . . Unauthorized Hacks . | . . . Terminals . | . . . Fabricators . | . . . Repair Stations . | . . . Recycling Units . | . . . Scanalyzers . | . . . Garrison Access . | . . . Data Cores Recovered . | . . . Used . | . . . Hacking Detections 2 | . 2 . Full Trace Events 2 | . 2 . Feedback Events . | . . . Feedback Blocked . | . . . Robot Schematics Acquired . | . . . Robots Built . | . . . Authchips . | . . . Time . | . . . Total Robot Build Rating . | . . . Part Schematics Acquired . | . . . Parts Built . | . . . Authchips . | . . . Time . | . . . Total Part Build Rating . | . . . Part Studies Acquired . | . . . Parts Repaired . | . . . Time . | . . . Parts Recycled . | . . . Recycled Matter . | . . . Retrieved Matter . | . . . Retrieved Components . | . . . Parts Scanalyzed . | . . . Part Schematics Acquired . | . . . Parts Damaged . | . . . Bothacking | -11 -10 -10 ------------ Run | Yrd Mat Sub Used RIF Installer . | . . . Robots Hacked . | . . . Non-combat . | . . . Combat . | . . . Robot Hacks Applied . | . . . Relay Couplers Released . | . . . Fabnet Peak Effective % . | . . . Robots Rewired . | . . . Allies Hacked . | . . . Hacks Repelled . | . . . Allies | -11 -10 -10 -------- Run | Yrd Mat Sub Total Allies . | . . . Largest Group . | . . . Highest-Rated Group . | . . . Highest-Rated Ally . | . . . Total Orders . | . . . Ally Attacks . | . . . Total Damage . | . . . Kills . | . . . Allies Corrupted . | . . . Allies Melted . | . . . Intel | -11 -10 -10 ------- Run | Yrd Mat Sub Active Infowar (turns) . | . . . Robot Analysis Total . | . . . Derelict Logs Recovered . | . . . Drone Launches . | . . . Drone Recoveries . | . . . Exploration | -11 -10 -10 ------------- Run | Yrd Mat Sub Turns Passed 1831 | 170 1244 417 Spaces Moved 888 | 104 474 310 Core 11 | 11 . . Treads 582 | 93 474 15 Legs . | . . . Wheels 295 | . . 295 Hover . | . . . Flight . | . . . Fastest Speed 50 | 50 160 105 Average Speed 184 | 148 238 115 Slowest Speed 240 | 160 240 240 Overloaded Moves . | . . . Propulsion Burnouts . | . . . Robots Hopped . | . . . Potential Cave-ins . | . . . Cave-ins Triggered . | . . . Exploration Rate (%) 26 | 5 46 29 Regions Visited 2 Branch Regions 1 Pre-discovered Areas . | . . . Known Exits Taken . | . . . Unknown Exits Taken 2 | 1 1 . Scrap Searched . | . . . Spaces Dug . | . . . Terrain Destroyed 166 | . 43 123 Melee . | . . . Projectile . | . . . AOE 166 | . 43 123 Terrain Rammed . | . . . Walls Destroyed . | . . . Machines Disabled . | . . . Actions | -11 -10 -10 --------- Run | Yrd Mat Sub Total 1011 | 118 553 340 Wait 1 | . . 1 Move 886 | 103 473 310 Hop . | . . . Pick Up 41 | 8 31 2 Fast Attach 6 | 5 1 . Attach 4 | 1 1 2 Detach 1 | . 1 . Swap 7 | . 3 4 Drop 22 | 1 17 4 Fire 41 | . 24 17 Melee . | . . . Ram . | . . . Kick . | . . . Crush 2 | . 2 . Escape Stasis . | . . . Rewire . | . . . Trap . | . . . Miscellaneous . | . . . Route ------- -11/Scrapyard -10/Materials (discovered 3 exits: *Min x2 / [*Sub]) -10/Subcaves History --------- Turn | Location | Event 19 | -11/Scrapyard | Discovered new exit (range 13) 171 | -11/Scrapyard | Entered Materials 308 | -10/Materials | Build established: Mutant 1112 | -10/Materials | Identified exit to Mines 1403 | -10/Materials | Discovered new exit (range 5) 1415 | -10/Materials | Entered Subcaves 1416 | -10/Subcaves | Approached by a straggling Scientist 1479 | -10/Subcaves | Ambushed by Subdwellers from Twisted Machinery 1565 | -10/Subcaves | Ambushed by swarm of Subdwellers 1565 | -10/Subcaves | Ambushed by Subdwellers from Twisted Machinery 1565 | -10/Subcaves | Ambushed by Subdwellers from Twisted Machinery 1565 | -10/Subcaves | Ambushed by Subdwellers from Twisted Machinery 1565 | -10/Subcaves | Ambushed by Subdwellers from Twisted Machinery 1566 | -10/Subcaves | Ambushed by Subdwellers from Twisted Machinery 1566 | -10/Subcaves | Ambushed by Subdwellers from Twisted Machinery 1569 | -10/Subcaves | Core integrity fell below 50% 1599 | -10/Subcaves | Destroyed 12 combat bots 1600 | -10/Subcaves | Lost 3 allies 1634 | -10/Subcaves | A swath of the cavern ceiling suddenly collapsed 1657 | -10/Subcaves | Core integrity fell below 20% 1737 | -10/Subcaves | A swath of the cavern ceiling suddenly collapsed 1832 | -10/Subcaves | Destroyed by Piercing Trap Last Messages --------------- 01614_ Scrap Shield Fragment crushed. 01634_ 7 Matter crushed. 01634_ 11 Matter crushed. A swath of the cavern ceiling suddenly collapses. 01648_ The unstable cave ceiling collapses. 01680_ Acquired 5 matter. 01685_ Acquired 9 matter. 01687_ Acquired 12 matter. 01694_ Acquired 14 matter. 01705_ Acquired 7 matter. 01706_ Acquired 14 matter. 01708_ Acquired 12 matter. 01737_ T6-JJK(g) crushed by falling debris. A swath of the cavern ceiling suddenly collapses. 01742_ The unstable cave ceiling collapses. 01832_ Triggered Piercing Trap. 01832_ Spikes shoot up from the floor. 01832_ Critical hit (Impale). Map ----- +----------------------------------------------------+ | ??????????????????????????????????? ????????????? | | ????????????????????????????????? ????????????# | | ??????????????????????????????? #?????????### | | ??????????????????????????????# #???????## | | ?????????????????????????????? #?????### | | ??????????????????????????????? ##???## # | | ???????????????????????????????? #???# ## | | ?????????????????????????????????# #???## #### | | ??????????????????????????????????# #????#### | | ??????????????????????????????????# #??????# | | ?????????????????????????????????## ##????## | | ?????????????????????????????????# ###### | | ??????????????????? ??????????## ## | | ???????????????? ??? ?????????## | | ?????????????? ??? ????????# | | ?????????????? ??? #???????# ##### | | ??????????????? ??? #??????# ## #???## | | ???????????????? ??? #?##### ## #????## | | ?????????????????# ## ## #?????### | | ??????????????????# ## ##???????# | | ??????????????????# ## ###????????? | | ???????????????????? ## ### ##????????? | | ????????????????????? ??# ## #????????? | | ?????????????????????# ### #????????? | | ???????????????????????# #????????? | | ???????????????????????##@ ## ##????????? | | ????????????????????????# #### ##?????????? | | ??????????????????????? ####??#######??????????? | | ????????????????????? ##??????????????????????? | | ???????????????????? #????????????????????????? | | ???????????????????# ?????????????????????????? | | ?????????????????? ?????????????????????????? | | ????????????????? ??????????????????????????? | | ???????????????? # #??????????????????????????? | | ????????????????##?## ???????????????????????????? | | ????????????????????##???????????????????????????? | | ?????????????????????????????????????????????????? | | ?????????????????????????????????????????????????? | | ?????????????????????????????????????????????????? | | ?????????????????????????????????????????????????? | | ?????????????????????????????????????????????????? | | ?????????????????????????????????????????????????? | | ?????????????????????????????????????????????????? | | ?????????????????????????????????????????????????? | | ?????????????????????????????????????????????????? | | ?????????????????????????????????????????????????? | | ?????????????????????????????????????????????????? | | ?????????????????????????????????????????????????? | | ?????????????????????????????????????????????????? | | ?????????????????????????????????????????????????? | +----------------------------------------------------+ Best States ------------- Heat Dissipation 25 Energy Generation 10 Energy Capacity 250 Matter Stores 271 Matter Capacity 300 Sight Range 16 Terrain Scan Density 10 Evasion (%) 50 Recoil Reduction 2 Item Schematics ----------------- None Robot Schematics ------------------ None Fabricated ------------ Nothing Repaired ---------- Nothing Studied --------- None Alien Tech Used ----------------- None Achievements -------------- Quick And Dirty Challenges ------------ None Game ------ Seed ConstructTowerReconfigurator Manual? 0 Play Time 00:23:05 Cumulative 11.1 hours Start 2025.11.07 @ 13:34:46 End 2025.11.07 @ 14:04:36 Sessions 1 Manual Loads 0 Difficulty Rogue Special Mode None Game No. 19 Rogue 16 Adventurer 3 Explorer 0 Win Type - Total 0 Types 0/0/0/0/0/0/0/0/0/0 Lore% 6 Gallery% 15 Achievement% 12 Wizard Run 0 Options --------- Layout 1 ASCII 0 Keyboard 1 Movement Arrows Keybinds 0 Fullscreen 1 Font 24/Smallcaps Map View 50x35 Zoom Use 0% Tactical HUD 1 Map Filters NONE Filters NONE Steam 1 RUN: 078a8ff7-1602-42f2-970d-4fefe37e2339